[Event "Dam-SM i Blixtschack"]
[Site "Goteborgs Schackcentrum, Vegatan 20, Gothenburg, Sweden"]
[Date "2024.12.07"]
[Round "9.3"]
[White "Nilsson, Elin"]
[Black "Claesson, Margareta"]
[Result "0-1"]
[TimeControl "3 minutes + 2 seconds per move from move one"]
[WhiteFideId "1790749"]
[BlackFideId "1701703"]
[WhiteElo "1509"]
[BlackElo "1934"]

1. d4 {[%clk 00:03:02]} {[%emt 00:00:02]} d5 {[%clk 00:03:03]} {[%emt
00:00:02]} 2. e3 {[%clk 00:03:02]} {[%emt 00:00:01]} g6 {[%clk 00:03:01]}
{[%emt 00:00:04]} 3. Nf3 {[%clk 00:03:02]} {[%emt 00:00:03]} Bg7 {[%clk
00:03:02]} 4. c3 {[%clk 00:02:56]} {[%emt 00:00:07]} Bg4 {[%clk 00:03:02]}
{[%emt 00:00:02]} 5. Be2 {[%clk 00:02:55]} {[%emt 00:00:03]} c6 {[%clk
00:03:02]} {[%emt 00:00:02]} 6. Nfd2 {[%clk 00:02:47]} {[%emt 00:00:10]} Bxe2
{[%clk 00:03:03]} {[%emt 00:00:02]} 7. Qxe2 {[%clk 00:02:47]} {[%emt 00:00:02]}
e5 {[%clk 00:02:56]} {[%emt 00:00:09]} 8. O-O {[%clk 00:02:44]} {[%emt
00:00:05]} Nd7 {[%clk 00:02:55]} {[%emt 00:00:03]} 9. Nf3 {[%clk 00:02:41]}
{[%emt 00:00:05]} e4 {[%clk 00:02:46]} {[%emt 00:00:12]} 10. Nfd2 {[%clk
00:02:25]} {[%emt 00:00:18]} f5 {[%clk 00:02:43]} {[%emt 00:00:04]} 11. Nb3
{[%clk 00:02:16]} {[%emt 00:00:11]} Ne7 {[%clk 00:02:30]} {[%emt 00:00:14]} 12.
c4 {[%clk 00:02:09]} {[%emt 00:00:10]} O-O {[%clk 00:02:30]} {[%emt 00:00:03]}
13. Na3 {[%clk 00:02:06]} {[%emt 00:00:05]} Rc8 {[%clk 00:02:11]} {[%emt
00:00:20]} 14. Bd2 {[%clk 00:02:06]} {[%emt 00:00:02]} h6 {[%clk 00:01:58]}
{[%emt 00:00:15]} 15. Na5 {[%clk 00:01:57]} {[%emt 00:00:11]} b6 {[%clk
00:01:53]} {[%emt 00:00:08]} 16. Nb7 {[%clk 00:01:44]} {[%emt 00:00:15]} Qc7
{[%clk 00:01:49]} {[%emt 00:00:06]} 17. Nc5 {[%clk 00:01:17]} {[%emt 00:00:29]}
bxc5 {[%clk 00:01:49]} {[%emt 00:00:02]} 18. b4 {[%clk 00:01:13]} {[%emt
00:00:07]} cxd4 {[%clk 00:01:40]} {[%emt 00:00:10]} 19. b5 {[%clk 00:01:04]}
{[%emt 00:00:11]} d3 {[%clk 00:01:38]} {[%emt 00:00:04]} 20. Qd1 {[%clk
00:00:58]} {[%emt 00:00:08]} dxc4 {[%clk 00:01:30]} {[%emt 00:00:10]} 21. Rb1
{[%clk 00:00:54]} {[%emt 00:00:07]} c3 {[%clk 00:01:25]} {[%emt 00:00:07]} 22.
Bc1 {[%clk 00:00:36]} {[%emt 00:00:20]} c5 {[%clk 00:01:07]} {[%emt 00:00:20]}
23. Qb3+ {[%clk 00:00:34]} {[%emt 00:00:04]} Kh7 {[%clk 00:01:06]} {[%emt
00:00:03]} 24. Nc4 {[%clk 00:00:31]} {[%emt 00:00:05]} Nb6 {[%clk 00:01:01]}
{[%emt 00:00:07]} 25. a4 {[%clk 00:00:23]} {[%emt 00:00:10]} Rfd8 {[%clk
00:00:53]} {[%emt 00:00:10]} 26. Nd2 {[%clk 00:00:20]} {[%emt 00:00:05]} c4
{[%clk 00:00:46]} {[%emt 00:00:08]} 27. Qb4 {[%clk 00:00:13]} {[%emt 00:00:10]}
Ned5 {[%clk 00:00:42]} {[%emt 00:00:06]} 28. Qa3 {[%clk 00:00:12]} {[%emt
00:00:03]} cxd2 {[%clk 00:00:37]} {[%emt 00:00:08]} 29. Bxd2 {[%clk 00:00:12]}
{[%emt 00:00:02]} c3 {[%clk 00:00:37]} 0-1

[Event "Dam-SM i Blixtschack"]
[Site "Goteborgs Schackcentrum, Vegatan 20, Gothenburg, Sweden"]
[Date "2024.12.07"]
[Round "3.2"]
[White "Nabbing, Johanna"]
[Black "Hansson, Susanne"]
[Result "0-1"]
[TimeControl "3 minutes + 2 seconds per move from move one"]
[WhiteFideId "1726340"]
[BlackFideId "1703820"]
[WhiteElo "1613"]
[BlackElo "1878"]

1. d4 {[%clk 00:03:02]} {[%emt 00:00:02]} d5 {[%clk 00:03:03]} 2. Nf3 {[%clk
00:03:03]} {[%emt 00:00:01]} Nc6 {[%clk 00:03:05]} 3. Bf4 {[%clk 00:03:04]} f6
{[%clk 00:03:06]} 4. e3 {[%clk 00:03:05]} Bg4 {[%clk 00:03:04]} {[%emt
00:00:04]} 5. Nbd2 {[%clk 00:03:03]} {[%emt 00:00:05]} e5 {[%clk 00:02:59]}
{[%emt 00:00:07]} 6. h3 {[%clk 00:02:57]} {[%emt 00:00:08]} Bxf3 {[%clk
00:02:55]} {[%emt 00:00:06]} 7. Qxf3 {[%clk 00:02:56]} {[%emt 00:00:02]} exf4
{[%clk 00:02:56]} {[%emt 00:00:02]} 8. Qxf4 {[%clk 00:02:56]} {[%emt 00:00:02]}
Bd6 {[%clk 00:02:53]} {[%emt 00:00:05]} 9. Qf3 {[%clk 00:02:52]} {[%emt
00:00:06]} Nge7 {[%clk 00:02:45]} {[%emt 00:00:10]} 10. Bd3 {[%clk 00:02:41]}
{[%emt 00:00:13]} Nb4 {[%clk 00:02:41]} {[%emt 00:00:06]} 11. O-O {[%clk
00:01:54]} {[%emt 00:00:49]} Nxd3 {[%clk 00:02:41]} {[%emt 00:00:03]} 12. cxd3
{[%clk 00:01:55]} Qd7 {[%clk 00:02:36]} {[%emt 00:00:07]} 13. Rfe1 {[%clk
00:01:39]} {[%emt 00:00:18]} O-O {[%clk 00:02:30]} {[%emt 00:00:07]} 14. e4
{[%clk 00:01:35]} {[%emt 00:00:06]} dxe4 {[%clk 00:02:11]} {[%emt 00:00:21]} 15.
Nxe4 {[%clk 00:01:34]} {[%emt 00:00:03]} Ng6 {[%clk 00:02:00]} {[%emt
00:00:14]} 16. Ng3 {[%emt 00:00:24]} Bxg3 {[%clk 00:01:55]} {[%emt 00:00:06]}
17. Qxg3 {[%clk 00:01:13]} {[%emt 00:00:01]} Rfe8 {[%clk 00:01:51]} {[%emt
00:00:07]} 18. Qf3 {[%clk 00:00:52]} {[%emt 00:00:23]} c6 {[%clk 00:01:49]}
{[%emt 00:00:04]} 19. Qd1 {[%clk 00:00:36]} {[%emt 00:00:18]} Qxd4 {[%clk
00:01:46]} {[%emt 00:00:04]} 20. Qb3+ {[%clk 00:00:36]} {[%emt 00:00:03]} Qd5
{[%clk 00:01:37]} {[%emt 00:00:11]} 21. Qxb7 {[%clk 00:00:34]} {[%emt
00:00:04]} Nf4 {[%clk 00:01:18]} {[%emt 00:00:21]} 22. g3 {[%clk 00:00:20]}
{[%emt 00:00:15]} Qg2# {[%clk 00:01:14]} {[%emt 00:00:02]} 0-1

[Event "Dam-SM i Blixtschack"]
[Site "Goteborgs Schackcentrum, Vegatan 20, Gothenburg, Sweden"]
[Date "2024.12.07"]
[Round "9.4"]
[White "Olsson, Linn"]
[Black "Opdendries, Zoe"]
[Result "1-0"]
[TimeControl "3 minutes + 2 seconds per move from move one"]
[WhiteFideId "1722514"]
[BlackFideId "1739506"]
[WhiteElo "1890"]
[BlackElo "1466"]

1. d4 {[%clk 00:03:04]} {[%emt 00:02:36]} Nf6 {[%clk 00:03:00]} {[%emt
00:00:04]} 2. c4 {[%clk 00:03:05]} d6 {[%clk 00:03:00]} {[%emt 00:00:01]} 3.
Nc3 {[%clk 00:03:06]} g6 {[%clk 00:03:00]} {[%emt 00:00:02]} 4. Nf3 {[%clk
00:03:08]} Bg7 {[%clk 00:03:01]} {[%emt 00:00:01]} 5. Bf4 {[%clk 00:03:09]}
{[%emt 00:00:01]} Nbd7 {[%clk 00:02:56]} {[%emt 00:00:07]} 6. e3 {[%clk
00:03:10]} c5 {[%clk 00:02:55]} {[%emt 00:00:03]} 7. Be2 {[%clk 00:03:10]}
{[%emt 00:00:03]} O-O {[%clk 00:02:52]} {[%emt 00:00:04]} 8. O-O {[%clk
00:03:10]} {[%emt 00:00:02]} b6 {[%clk 00:02:48]} {[%emt 00:00:05]} 9. d5
{[%clk 00:03:11]} {[%emt 00:00:02]} Bb7 {[%clk 00:02:38]} {[%emt 00:00:12]} 10.
Rc1 {[%clk 00:03:11]} {[%emt 00:00:02]} Ne5 {[%clk 00:02:28]} {[%emt 00:00:12]}
11. Bxe5 {[%clk 00:03:10]} {[%emt 00:00:04]} dxe5 {[%clk 00:02:27]} {[%emt
00:00:02]} 12. Nxe5 {[%clk 00:03:11]} Qd6 {[%clk 00:02:10]} {[%emt 00:00:18]}
13. Nf3 {[%clk 00:03:09]} {[%emt 00:00:05]} a6 {[%clk 00:01:53]} {[%emt
00:00:19]} 14. e4 {[%clk 00:03:10]} e6 {[%clk 00:01:42]} {[%emt 00:00:13]} 15.
e5 {[%clk 00:03:10]} {[%emt 00:00:02]} Qe7 {[%clk 00:01:36]} {[%emt 00:00:07]}
16. exf6 {[%clk 00:03:11]} {[%emt 00:00:01]} Bxf6 {[%clk 00:01:36]} {[%emt
00:00:02]} 17. Ne4 {[%clk 00:03:06]} {[%emt 00:00:08]} Bxb2 {[%clk 00:01:24]}
{[%emt 00:00:14]} 18. Rc2 {[%clk 00:03:05]} {[%emt 00:00:02]} Bg7 {[%clk
00:01:20]} {[%emt 00:00:06]} 19. Nc3 {[%clk 00:02:55]} {[%emt 00:00:13]} exd5
{[%clk 00:01:14]} {[%emt 00:00:08]} 20. cxd5 {[%clk 00:02:51]} {[%emt
00:00:06]} Rad8 {[%clk 00:01:05]} {[%emt 00:00:11]} 21. Re1 {[%clk 00:02:52]}
{[%emt 00:00:01]} Rfe8 {[%clk 00:00:56]} {[%emt 00:00:11]} 22. Bxa6 {[%clk
00:02:28]} {[%emt 00:00:25]} Qd7 {[%clk 00:00:14]} {[%emt 00:00:43]} 23. Bxb7
{[%clk 00:02:18]} {[%emt 00:00:12]} Qxb7 {[%clk 00:00:14]} {[%emt 00:00:02]} 24.
Qd2 {[%clk 00:02:00]} {[%emt 00:00:20]} Bxc3 {[%clk 00:00:08]} {[%emt
00:00:08]} 25. Qxc3 {[%clk 00:02:00]} {[%emt 00:00:03]} Qxd5 {[%clk 00:00:06]}
{[%emt 00:00:03]} 26. Rcc1 {[%clk 00:01:51]} 1-0

[Event "Dam-SM i Blixtschack"]
[Site "Goteborgs Schackcentrum, Vegatan 20, Gothenburg, Sweden"]
[Date "2024.12.07"]
[Round "9.5"]
[White "Mironova, Olga K"]
[Black "Nabbing, Johanna"]
[Result "0-1"]
[TimeControl "3 minutes + 2 seconds per move from move one"]
[WhiteFideId "1779656"]
[BlackFideId "1726340"]
[WhiteElo "1404"]
[BlackElo "1613"]

1. e4 {[%clk 00:03:02]} {[%emt 00:00:01]} d5 {[%clk 00:03:04]} 2. e5 {[%clk
00:03:01]} {[%emt 00:00:03]} Bf5 {[%clk 00:03:02]} {[%emt 00:00:04]} 3. Nf3
{[%clk 00:02:57]} {[%emt 00:00:06]} e6 {[%clk 00:03:02]} {[%emt 00:00:02]} 4.
Bb5+ {[%clk 00:02:53]} {[%emt 00:00:06]} Nc6 {[%clk 00:03:00]} {[%emt
00:00:05]} 5. O-O {[%clk 00:02:51]} {[%emt 00:00:03]} Bc5 {[%clk 00:02:58]}
{[%emt 00:00:04]} 6. d4 {[%clk 00:02:46]} {[%emt 00:00:07]} Bb6 {[%clk
00:02:58]} {[%emt 00:00:03]} 7. Be3 {[%clk 00:02:42]} {[%emt 00:00:06]} Nge7
{[%clk 00:02:56]} {[%emt 00:00:04]} 8. Nc3 {[%clk 00:02:41]} {[%emt 00:00:03]}
a6 {[%clk 00:02:55]} {[%emt 00:00:03]} 9. Ba4 {[%clk 00:02:40]} {[%emt
00:00:03]} Ba5 {[%clk 00:02:48]} {[%emt 00:00:09]} 10. a3 {[%clk 00:02:29]}
{[%emt 00:00:13]} b5 {[%clk 00:02:39]} {[%emt 00:00:10]} 11. b4 {[%clk
00:02:21]} {[%emt 00:00:10]} bxa4 {[%clk 00:02:37]} {[%emt 00:00:04]} 12. bxa5
{[%clk 00:02:21]} {[%emt 00:00:02]} Nxa5 {[%clk 00:02:36]} {[%emt 00:00:03]} 13.
Nxa4 {[%clk 00:02:20]} {[%emt 00:00:02]} Rb8 {[%clk 00:02:35]} {[%emt
00:00:03]} 14. Nc5 {[%clk 00:02:17]} {[%emt 00:00:05]} Qc8 {[%clk 00:02:21]}
{[%emt 00:00:17]} 15. Ng5 {[%clk 00:02:09]} {[%emt 00:00:10]} O-O {[%clk
00:02:21]} {[%emt 00:00:02]} 16. Qh5 {[%clk 00:02:01]} {[%emt 00:00:10]} Bxc2
{[%clk 00:02:12]} {[%emt 00:00:11]} 17. Qxh7+ {[%clk 00:01:58]} {[%emt
00:00:05]} Bxh7 {[%clk 00:02:12]} {[%emt 00:00:01]} 18. Nxh7 {[%clk 00:01:10]}
{[%emt 00:00:50]} Kxh7 {[%clk 00:02:13]} {[%emt 00:00:02]} 19. Nd3 {[%clk
00:01:06]} {[%emt 00:00:06]} Nc4 {[%clk 00:02:13]} {[%emt 00:00:02]} 20. Bg5
{[%clk 00:01:05]} {[%emt 00:00:03]} Ng6 {[%clk 00:02:06]} {[%emt 00:00:09]} 21.
Nf4 {[%clk 00:01:02]} {[%emt 00:00:05]} Nxf4 {[%clk 00:02:05]} {[%emt
00:00:02]} 22. Bxf4 {[%clk 00:01:02]} {[%emt 00:00:02]} Rb2 {[%clk 00:02:03]}
{[%emt 00:00:04]} 23. Rab1 {[%clk 00:00:49]} {[%emt 00:00:16]} Qb7 {[%clk
00:02:03]} {[%emt 00:00:02]} 24. Rxb2 {[%clk 00:00:31]} {[%emt 00:00:18]} Qxb2
{[%clk 00:02:03]} {[%emt 00:00:02]} 25. h3 {[%clk 00:00:15]} {[%emt 00:00:18]}
Rb8 {[%clk 00:01:55]} {[%emt 00:00:11]} 0-1

[Event "Dam-SM i Blixtschack"]
[Site "Goteborgs Schackcentrum, Vegatan 20, Gothenburg, Sweden"]
[Date "2024.12.07"]
[Round "3.4"]
[White "Svensson, Paula"]
[Black "Nilsson, Elin"]
[Result "0-1"]
[TimeControl "3 minutes + 2 seconds per move from move one"]
[WhiteFideId "1715186"]
[BlackFideId "1790749"]
[WhiteElo "1488"]
[BlackElo "1509"]

1. e4 {[%clk 00:03:02]} {[%emt 00:00:02]} e6 {[%clk 00:03:03]} {[%emt
00:00:02]} 2. e5 {[%clk 00:03:02]} {[%emt 00:00:02]} d5 {[%clk 00:03:01]}
{[%emt 00:00:03]} 3. d4 {[%clk 00:02:59]} {[%emt 00:00:05]} c5 {[%clk
00:02:53]} {[%emt 00:00:10]} 4. c4 {[%clk 00:02:50]} {[%emt 00:00:11]} Nc6
{[%clk 00:02:39]} {[%emt 00:00:17]} 5. Be3 {[%clk 00:02:41]} {[%emt 00:00:09]}
Qa5+ {[%clk 00:02:15]} {[%emt 00:00:27]} 6. Nc3 {[%clk 00:02:37]} {[%emt
00:00:05]} Bd7 {[%clk 00:02:10]} {[%emt 00:00:08]} 7. a3 {[%clk 00:02:25]}
{[%emt 00:00:15]} Rc8 {[%clk 00:02:00]} {[%emt 00:00:11]} 8. Qd2 {[%clk
00:02:24]} {[%emt 00:00:03]} cxd4 {[%clk 00:01:37]} {[%emt 00:00:25]} 9. Bxd4
{[%clk 00:02:18]} {[%emt 00:00:08]} Qd8 {[%clk 00:01:18]} {[%emt 00:00:21]} 10.
Nb5 {[%clk 00:02:10]} {[%emt 00:00:10]} Qh4 {[%clk 00:01:11]} {[%emt 00:00:08]}
11. Nf3 {[%clk 00:02:00]} {[%emt 00:00:13]} Qh5 {[%clk 00:00:53]} {[%emt
00:00:20]} 12. Be2 {[%clk 00:01:59]} {[%emt 00:00:02]} Qg6 {[%clk 00:00:53]}
{[%emt 00:00:03]} 13. O-O {[%clk 00:01:55]} {[%emt 00:00:05]} Nh6 {[%clk
00:00:51]} {[%emt 00:00:05]} 14. Nh4 {[%clk 00:01:50]} {[%emt 00:00:06]} Qe4
{[%clk 00:00:38]} {[%emt 00:00:15]} 15. Nf3 {[%clk 00:01:33]} {[%emt 00:00:20]}
a6 {[%clk 00:00:35]} {[%emt 00:00:06]} 16. Nd6+ {[%clk 00:01:28]} {[%emt
00:00:06]} Bxd6 {[%clk 00:00:27]} {[%emt 00:01:02]} 17. exd6 {[%clk 00:02:26]}
{[%emt 00:00:03]} O-O {[%clk 00:00:25]} {[%emt 00:00:04]} 18. Bd3 {[%clk
00:02:21]} {[%emt 00:00:06]} Qg4 {[%clk 00:00:21]} {[%emt 00:00:06]} 19. c5
{[%clk 00:02:01]} {[%emt 00:00:22]} Nxd4 {[%clk 00:00:21]} {[%emt 00:00:02]} 20.
Bxh7+ {[%clk 00:01:46]} {[%emt 00:00:16]} Kxh7 {[%clk 00:00:21]} {[%emt
00:00:03]} 21. Nxd4 {[%clk 00:01:42]} {[%emt 00:00:06]} e5 {[%clk 00:00:15]}
{[%emt 00:00:09]} 22. f3 {[%clk 00:01:32]} {[%emt 00:00:11]} Qg6 {[%clk
00:00:15]} {[%emt 00:00:02]} 23. Ne2 {[%clk 00:01:21]} {[%emt 00:00:13]} Rxc5
{[%clk 00:00:16]} {[%emt 00:00:02]} 24. Ng3 {[%clk 00:01:05]} {[%emt 00:00:17]}
Bb5 {[%clk 00:00:16]} {[%emt 00:00:02]} 25. Rfc1 {[%clk 00:01:04]} {[%emt
00:00:03]} Rxc1+ {[%clk 00:00:11]} {[%emt 00:00:08]} 26. Rxc1 {[%clk 00:01:03]}
{[%emt 00:00:02]} Nf5 {[%clk 00:00:09]} {[%emt 00:00:05]} 27. Nxf5 {[%clk
00:00:56]} {[%emt 00:00:08]} Qxf5 {[%clk 00:00:10]} {[%emt 00:00:01]} 28. Rc7
{[%clk 00:00:52]} {[%emt 00:00:06]} g6 {[%clk 00:00:07]} {[%emt 00:00:05]} 29.
Qb4 {[%clk 00:00:46]} {[%emt 00:00:07]} Rd8 {[%clk 00:00:08]} {[%emt 00:00:02]}
30. Rxb7 {[%clk 00:00:39]} {[%emt 00:00:08]} Qb1+ {[%clk 00:00:09]} {[%emt
00:00:02]} 31. Kf2 {[%clk 00:00:39]} {[%emt 00:00:02]} Qc2+ {[%clk 00:00:07]}
{[%emt 00:00:04]} 32. Kg3 {[%clk 00:00:37]} {[%emt 00:00:03]} Qf5 {[%clk
00:00:04]} {[%emt 00:00:06]} 33. Rxb5 {[%clk 00:00:30]} {[%emt 00:00:10]} Qf4+
{[%clk 00:00:05]} {[%emt 00:00:01]} 34. Kf2 {[%clk 00:00:28]} {[%emt 00:00:03]}
Qg5 {[%clk 00:00:04]} {[%emt 00:00:03]} 35. Rb8 {[%clk 00:00:24]} {[%emt
00:00:06]} Rd7 {[%clk 00:00:04]} {[%emt 00:00:03]} 36. Qb6 {[%clk 00:00:18]}
{[%emt 00:00:08]} Qf5 {[%clk 00:00:04]} {[%emt 00:00:01]} 37. Rd8 {[%clk
00:00:12]} {[%emt 00:00:07]} e4 {[%clk 00:00:05]} {[%emt 00:00:02]} 38. Rxd7
{[%clk 00:00:09]} {[%emt 00:00:05]} Qxd7 {[%clk 00:00:03]} {[%emt 00:00:04]} 39.
Qe3 {[%clk 00:00:07]} {[%emt 00:00:03]} Qc6 {[%clk 00:00:05]} {[%emt 00:00:01]}
40. fxe4 {[%clk 00:00:05]} {[%emt 00:00:04]} Qxd6 {[%clk 00:00:05]} {[%emt
00:00:01]} 41. Qh3+ {[%clk 00:00:00]} {[%emt 00:00:07]} 0-1

[Event "Dam-SM i Blixtschack"]
[Site "Goteborgs Schackcentrum, Vegatan 20, Gothenburg, Sweden"]
[Date "2024.12.07"]
[Round "7.2"]
[White "Hansson, Susanne"]
[Black "Svensson, Paula"]
[Result "1-0"]
[TimeControl "3 minutes + 2 seconds per move from move one"]
[WhiteFideId "1703820"]
[BlackFideId "1715186"]
[WhiteElo "1878"]
[BlackElo "1488"]

1. e4 {[%clk 00:03:03]} {[%emt 00:00:01]} e5 {[%clk 00:03:03]} {[%emt
00:00:01]} 2. f4 {[%clk 00:03:04]} {[%emt 00:00:01]} d5 {[%clk 00:02:54]}
{[%emt 00:00:11]} 3. exd5 {[%clk 00:03:02]} {[%emt 00:00:04]} Qxd5 {[%clk
00:02:54]} {[%emt 00:00:03]} 4. Nc3 {[%clk 00:03:02]} {[%emt 00:00:02]} Qe6
{[%clk 00:02:37]} {[%emt 00:00:19]} 5. fxe5 {[%clk 00:02:53]} {[%emt 00:00:10]}
Qxe5+ {[%clk 00:02:36]} {[%emt 00:00:03]} 6. Be2 {[%clk 00:02:47]} {[%emt
00:00:08]} Bc5 {[%clk 00:02:28]} {[%emt 00:00:10]} 7. Nf3 {[%clk 00:02:45]}
{[%emt 00:00:03]} Qe7 {[%clk 00:02:12]} {[%emt 00:00:19]} 8. d4 {[%clk
00:02:44]} {[%emt 00:00:03]} Bd6 {[%clk 00:02:05]} {[%emt 00:00:09]} 9. O-O
{[%clk 00:02:42]} {[%emt 00:00:04]} Nf6 {[%clk 00:01:59]} {[%emt 00:00:08]} 10.
Bg5 {[%emt 00:00:06]} O-O {[%clk 00:01:56]} {[%emt 00:00:03]} 11. Nd5 {[%clk
00:02:20]} {[%emt 00:00:22]} Nbd7 {[%clk 00:01:53]} {[%emt 00:00:06]} 12. Nxe7+
{[%clk 00:02:20]} {[%emt 00:00:01]} Bxe7 {[%clk 00:01:50]} {[%emt 00:00:05]} 13.
Ne5 {[%clk 00:02:20]} {[%emt 00:00:02]} Nxe5 {[%clk 00:01:49]} {[%emt
00:00:03]} 14. dxe5 {[%clk 00:02:20]} {[%emt 00:00:01]} Nd7 {[%clk 00:01:39]}
{[%emt 00:00:12]} 15. Bxe7 {[%clk 00:02:20]} {[%emt 00:00:03]} Re8 {[%clk
00:01:40]} {[%emt 00:00:01]} 16. Bh4 {[%clk 00:01:58]} {[%emt 00:00:23]} Nxe5
{[%clk 00:01:37]} {[%emt 00:00:06]} 17. Bb5 {[%clk 00:01:46]} {[%emt 00:00:14]}
c6 {[%clk 00:01:35]} {[%emt 00:00:04]} 18. Bd3 {[%clk 00:01:37]} {[%emt
00:00:11]} Be6 {[%clk 00:01:29]} {[%emt 00:00:09]} 19. Qh5 {[%clk 00:01:31]}
{[%emt 00:00:07]} g6 {[%clk 00:01:22]} {[%emt 00:00:08]} 20. Qxe5 {[%clk
00:01:29]} {[%emt 00:00:04]} 1-0

[Event "Dam-SM i Blixtschack"]
[Site "Goteborgs Schackcentrum, Vegatan 20, Gothenburg, Sweden"]
[Date "2024.12.07"]
[Round "7.3"]
[White "Claesson, Margareta"]
[Black "Nabbing, Johanna"]
[Result "1-0"]
[TimeControl "3 minutes + 2 seconds per move from move one"]
[WhiteFideId "1701703"]
[BlackFideId "1726340"]
[WhiteElo "1934"]
[BlackElo "1613"]

1. e4 {[%clk 00:03:03]} d5 {[%clk 00:03:03]} {[%emt 00:00:01]} 2. exd5 {[%clk
00:03:03]} {[%emt 00:00:02]} Qxd5 {[%clk 00:03:04]} {[%emt 00:00:02]} 3. Nc3
{[%clk 00:03:04]} Qd6 {[%clk 00:03:05]} 4. d3 {[%clk 00:02:29]} {[%emt
00:00:37]} Nf6 {[%clk 00:03:05]} {[%emt 00:00:01]} 5. Nf3 {[%clk 00:02:21]}
{[%emt 00:00:11]} Bg4 {[%clk 00:03:05]} {[%emt 00:00:02]} 6. Be2 {[%clk
00:02:22]} e6 {[%clk 00:03:00]} {[%emt 00:00:08]} 7. O-O {[%clk 00:02:21]}
{[%emt 00:00:02]} c6 {[%clk 00:02:59]} {[%emt 00:00:03]} 8. h3 {[%clk
00:02:16]} {[%emt 00:00:07]} Bh5 {[%clk 00:02:57]} {[%emt 00:00:04]} 9. Re1
{[%clk 00:02:12]} {[%emt 00:00:06]} Qc7 {[%clk 00:02:56]} {[%emt 00:00:03]} 10.
Be3 {[%clk 00:02:07]} {[%emt 00:00:08]} Bd6 {[%clk 00:02:56]} {[%emt 00:00:02]}
11. Ne4 {[%clk 00:01:38]} {[%emt 00:00:30]} Nxe4 {[%clk 00:02:55]} {[%emt
00:00:03]} 12. dxe4 {[%clk 00:01:39]} Nd7 {[%clk 00:02:51]} {[%emt 00:00:06]}
13. Rc1 {[%clk 00:01:25]} {[%emt 00:00:15]} O-O-O {[%clk 00:02:49]} {[%emt
00:00:04]} 14. c4 {[%clk 00:01:27]} b6 {[%clk 00:02:50]} {[%emt 00:00:01]} 15.
a3 {[%clk 00:01:18]} {[%emt 00:00:10]} Ne5 {[%clk 00:02:50]} {[%emt 00:00:02]}
16. Nxe5 {[%clk 00:01:17]} {[%emt 00:00:03]} Bxe2 {[%clk 00:02:49]} {[%emt
00:00:03]} 17. Qxe2 {[%clk 00:01:17]} {[%emt 00:00:03]} Bxe5 {[%clk 00:02:50]}
{[%emt 00:00:01]} 18. c5 {[%clk 00:01:13]} {[%emt 00:00:05]} h5 {[%clk
00:02:26]} {[%emt 00:00:26]} 19. cxb6 {[%clk 00:01:14]} {[%emt 00:00:02]} axb6
{[%clk 00:02:26]} {[%emt 00:00:01]} 20. Qa6+ {[%clk 00:01:14]} {[%emt
00:00:02]} Qb7 {[%clk 00:02:24]} {[%emt 00:00:04]} 21. Qxb6 {[%clk 00:01:13]}
{[%emt 00:00:02]} Qxb6 {[%clk 00:02:26]} {[%emt 00:00:01]} 22. Bxb6 {[%clk
00:01:14]} {[%emt 00:00:01]} Rd6 {[%clk 00:02:24]} {[%emt 00:00:04]} 23. Rc2
{[%clk 00:01:07]} {[%emt 00:00:09]} Kb7 {[%clk 00:02:25]} {[%emt 00:00:01]} 24.
Be3 {[%clk 00:01:06]} {[%emt 00:00:02]} Rhd8 {[%clk 00:02:14]} {[%emt
00:00:13]} 25. f4 {[%clk 00:01:05]} {[%emt 00:00:04]} Rd1 {[%clk 00:01:57]}
{[%emt 00:00:19]} 26. Rxd1 {[%clk 00:00:55]} {[%emt 00:00:12]} Rxd1+ {[%clk
00:01:58]} 27. Kf2 {[%clk 00:00:56]} Bd6 {[%clk 00:01:55]} {[%emt 00:00:04]} 28.
e5 {[%clk 00:00:54]} {[%emt 00:00:05]} Be7 {[%clk 00:01:56]} {[%emt 00:00:02]}
29. Ke2 {[%clk 00:00:52]} {[%emt 00:00:03]} Rd7 {[%clk 00:01:52]} {[%emt
00:00:05]} 30. g4 {[%clk 00:00:46]} {[%emt 00:00:09]} hxg4 {[%clk 00:01:52]}
{[%emt 00:00:02]} 31. hxg4 {[%clk 00:00:47]} f6 {[%clk 00:01:51]} {[%emt
00:00:02]} 32. exf6 {[%clk 00:00:43]} {[%emt 00:00:06]} Bxf6 {[%clk 00:01:52]}
{[%emt 00:00:01]} 33. g5 {[%clk 00:00:28]} {[%emt 00:00:17]} Bd8 {[%clk
00:01:48]} {[%emt 00:00:06]} 34. Rc4 {[%clk 00:00:21]} {[%emt 00:00:09]} Ba5
{[%clk 00:01:38]} {[%emt 00:00:12]} 35. Re4 {[%clk 00:00:21]} {[%emt 00:00:02]}
Re7 {[%clk 00:01:28]} {[%emt 00:00:12]} 36. Kd3 {[%clk 00:00:20]} {[%emt
00:00:02]} Kc7 {[%clk 00:01:29]} {[%emt 00:00:01]} 37. Kc4 {[%clk 00:00:22]}
Kb7 {[%clk 00:01:04]} {[%emt 00:00:27]} 38. b4 {[%clk 00:00:23]} Bc7 {[%clk
00:01:03]} {[%emt 00:00:03]} 39. a4 {[%clk 00:00:21]} {[%emt 00:00:04]} Bd6
{[%clk 00:00:39]} {[%emt 00:00:26]} 40. Bc5 {[%clk 00:00:18]} {[%emt 00:00:04]}
Bxc5 {[%clk 00:00:37]} {[%emt 00:00:04]} 41. Kxc5 {[%clk 00:00:19]} g6 {[%clk
00:00:32]} {[%emt 00:00:07]} 42. Kd6 {[%clk 00:00:20]} {[%emt 00:00:01]} Re8
{[%clk 00:00:30]} {[%emt 00:00:03]} 43. Rxe6 {[%clk 00:00:21]} {[%emt
00:00:02]} Rd8+ {[%clk 00:00:31]} 44. Kc5 {[%clk 00:00:20]} {[%emt 00:00:03]}
Rd1 {[%clk 00:00:30]} {[%emt 00:00:02]} 45. Rxg6 {[%clk 00:00:19]} {[%emt
00:00:03]} Rc1+ {[%clk 00:00:31]} {[%emt 00:00:02]} 46. Kd4 {[%clk 00:00:20]}
{[%emt 00:00:02]} Rd1+ {[%clk 00:00:31]} {[%emt 00:00:01]} 47. Kc3 {[%clk
00:00:20]} {[%emt 00:00:02]} Rf1 {[%clk 00:00:28]} {[%emt 00:00:05]} 48. Rf6
{[%clk 00:00:21]} {[%emt 00:00:01]} Rf3+ {[%clk 00:00:28]} {[%emt 00:00:02]} 49.
Kc4 {[%clk 00:00:22]} Re3 {[%clk 00:00:28]} {[%emt 00:00:02]} 50. g6 {[%clk
00:00:22]} {[%emt 00:00:02]} Re4+ {[%clk 00:00:29]} 51. Kc5 {[%clk 00:00:22]}
{[%emt 00:00:02]} Re1 {[%clk 00:00:23]} {[%emt 00:00:07]} 52. g7 {[%clk
00:00:23]} {[%emt 00:00:01]} Rg1 {[%clk 00:00:24]} {[%emt 00:00:01]} 53. Rf7+
{[%clk 00:00:23]} {[%emt 00:00:02]} Ka6 {[%clk 00:00:25]} 54. f5 {[%clk
00:00:24]} {[%emt 00:00:01]} 1-0